Cogmind - Beta 17 @@@ ROGUE MODE // 2026.07.07 @ 18:24:16 Player: NeoBioHazard Result: Destroyed by G-34 Mercenary with Small Laser Performance ------------- Evolutions (0) 0 Regions Visited (1) 200 Robots Destroyed (26) 130 Value Destroyed (558) 558 Prototype IDs (0) 0 Alien Tech Used (0) 0 Bonus (0) 0 TOTAL SCORE: 888 Bonus ------- None Cogmind --------- Core Integrity 0/250 Matter 290/300 Energy 234/250 System Corruption 0% Temperature Hot (229) Movement Walking (120) Location -10/Materials Parts ------- > --- POWER (1) -------- Ion Engine > --- PROPULSION (2) --- Aluminum Leg Aluminum Leg > --- UTILITY (2) ------ Small Storage Unit > --- WEAPON (2) ------- Small Laser Small Laser > --- INVENTORY (8) ---- Ion Engine Ion Engine Aluminum Leg Small Laser Small Laser Assault Rifle Mace Peak State ------------ > --- POWER ------------ Ion Engine > --- PROPULSION ------- Compact Wheel Compact Wheel > --- UTILITY ---------- Heat Sink Small Storage Unit > --- WEAPON ----------- Medium Laser Medium Laser > --- INVENTORY -------- Ion Engine Small Laser Small Laser Small Laser Small Laser Small Laser Assault Rifle Hammer [Rating: 7] Favorites ----------- Power Ion Engine Engine Ion Engine Propulsion Aluminum Leg Leg Aluminum Leg Wheel Compact Wheel Utility Small Storage Unit Device Heat Sink Storage Small Storage Unit Weapon Medium Laser Energy Gun Medium Laser Build | -11 -10 ------- Run | Yrd Mat Slots Evolved . | . . Power . | . . Propulsion . | . . Utility . | . . Weapon . | . . Parts Attached 17 | 6 11 Power 4 | 1 3 Engine 4 | 1 3 Core . | . . Reactor . | . . Propulsion 6 | 2 4 Treads . | . . Leg 4 | . 4 Wheel 2 | 2 . Hover . | . . Flight . | . . Utility 2 | 1 1 Device 1 | . 1 Storage 1 | 1 . Processor . | . . Hackware . | . . Protection . | . . Artifact . | . . Weapon 5 | 2 3 Energy Gun 5 | 2 3 Energy Cannon . | . . Ballistic Gun . | . . Ballistic Cannon . | . . Launcher . | . . Special Weapon . | . . Impact Weapon . | . . Slashing Weapon . | . . Piercing Weapon . | . . Special Melee Weapon . | . . Unidentified Prototypes . | . . Parts Lost 5 | . 5 Power . | . . Propulsion 1 | . 1 Utility 1 | . 1 Weapon 3 | . 3 Highest Loss Streak 2 | . 2 To Critical Strikes . | . . Average Backups 7 | 1 7 Power 1 | . 1 Propulsion . | . . Utility . | . . Weapon 5 | . 6 Tool/Special . | . . Unused Backups 6 | . 6 Power 1 | . 1 Propulsion . | . . Utility . | . . Weapon 5 | . 5 Tool/Special . | . . Average Slot Usage (%) 94 | . 94 Engine 14 | . 14 Leg 15 | . 15 Wheel 12 | . 12 Device 9 | . 9 Storage 14 | . 14 Energy Gun 27 | . 27 Peak Build Rating 7 | 6 7 Average Rating 6 | 4 6 On Entrance 3 | . 6 Avg Prop Armor Cover (%) 3 | . 3 Naked Turns . | . . Heaviest Build 15 | 14 15 Greatest Support 32 | 32 32 Greatest Overweight (x) 1 | . 1 Average Overweight (x) . | . . Largest Inventory Capacity 8 | 8 8 Average Capacity 7 | 6 8 Most Carried 8 | 2 8 Average Carried 7 | 1 7 Final Capacity 8 | 8 8 Final Carried 7 | 2 7 Class Distribution -------------------- 50% | Scavenger-Mutant 49% | Mutant Dominant Class ---------------- Scavenger-Mutant | -10/Materials Resources | -11 -10 ----------- Run | Yrd Mat Matter Collected 360 | 214 146 Remotely . | . . Salvage Created 801 | . 801 Parts 47 | . 47 Haulers Intercepted 1 | . 1 Recyclers Shooed . | . . Parts Field Recycled . | . . Retrieved Matter . | . . Parts Self-Destructed . | . . Prevented . | . . Parts Restored . | . . Kills | -11 -10 ------- Run | Yrd Mat Combat Hostiles Destroyed 17 | . 17 Guns 16 | . 16 Classes Destroyed 7 | . 7 Worker 3 | . 3 Builder 1 | . 1 Hauler 1 | . 1 Operator 1 | . 1 Watcher 3 | . 3 Swarmer 5 | . 5 Grunt 12 | . 12 Best Kill Streak 5 | . 5 Combat Bots Only 3 | . 3 Max Kills in Single Turn 2 | . 2 Gunslinging 1 | . 1 Exploded . | . . Melee . | . . Uniques/NPCs Destroyed . | . . Combat | -11 -10 -------- Run | Yrd Mat Hostile Shots Fired 123 | . 123 Missed 37 | . 37 Hits 86 | . 86 Projectile 86 | . 86 Critical Strikes 2 | . 2 Damage Taken 948 | . 948 Core 259 | . 259 Absorbed by Shields . | . . Core Remaining (%) 100 | 100 . Volleys Fired 89 | . 89 Largest 2 | . 2 Hottest 100 | . 100 Shots Fired 178 | . 178 Gun 178 | . 178 Cannon . | . . Launcher . | . . Special . | . . Kinetic . | . . Thermal 178 | . 178 Explosive . | . . Electromagnetic . | . . Robot Hit Streak 13 | . 13 Robot Miss Streak 7 | . 7 Penetration Max . | . . Secondary Targets 3 | . 3 Max Gunslinging Chain 1 | . 1 Shots Hit Robots 104 | . 104 Core Hits 41 | . 41 Critical Kills . | . . Critical Parts Destroyed . | . . Critical Strikes 9 | . 9 Burn 9 | . 9 Melee Attacks . | . . Impact . | . . Slashing . | . . Piercing . | . . Sneak Attacks . | . . Combat Hostiles . | . . Follow-up Attacks . | . . Damage Inflicted 1367 | . 1367 Guns 1367 | . 1367 Cannons . | . . Explosions . | . . Melee . | . . Ramming . | . . Kinetic . | . . Thermal 1367 | . 1367 Explosive . | . . Electromagnetic . | . . Impact . | . . Slashing . | . . Piercing . | . . Highest Corruption . | . . Average Corruption . | . . Corruption Purged . | . . Corruption Blocked . | . . Overload Shots . | . . Overflow Damage . | . . Projectiles . | . . Explosions . | . . Melee . | . . Knockbacks . | . . Impact . | . . Kinetic . | . . Secondary . | . . Self-Inflicted Damage . | . . Shots . | . . Rammed . | . . Targets Rammed . | . . Kicked . | . . Crushed . | . . Highest Temperature 223 | . 223 Average Temperature 50 | . 50 Received Heat Transfer 456 | . 456 Siege Activations . | . . Martial Activations . | . . Shielding Activations . | . . Robots Disrupted . | . . Combat Hostiles . | . . Robots Corrupted . | . . Combat Hostiles . | . . Parts Fried . | . . Impact Corruptions . | . . Robots Melted 1 | . 1 Combat Hostiles 1 | . 1 Parts Melted 7 | . 7 Heat Transferred 4173 | . 4173 Parts Sabotaged . | . . Parts Stolen . | . . Parts Stripped . | . . Power Chain Reactions . | . . Alert | -11 -10 ------- Run | Yrd Mat Maximum Alert Level . | . . Low Security (%) 100 | 100 100 Level 1 . | . . Level 2 . | . . Level 3 . | . . Level 4 . | . . Level 5 . | . . High Security . | . . Max Security . | . . Peak Influence 173 | . 173 Initial . | . . Average 66 | . 69 Influence Increases 505 | . 505 Destroy 0b10 Robot/C 340 | . 340 Destroy 0b10 Robot/NC 45 | . 45 Destroy Leader 88 | . 88 Successful Hack 16 | . 16 Destroy Structure 1 | . 1 Partial Spotted 15 | . 15 Influence Decreases 340 | . 340 Time Decay 290 | . 290 Lost Part 50 | . 50 Squads Dispatched 4 | . 4 Investigation 3 | . 3 Extermination . | . . Reinforcement 1 | . 1 Assault . | . . Garrison . | . . Intercept . | . . Searches Triggered . | . . Construction Impeded . | . . Haulers Reinforced . | . . Active Scanning Responses . | . . Cargo Convoy Interrupts . | . . Stealth | -11 -10 --------- Run | Yrd Mat Distress Signals 2 | . 2 Communications Jammed . | . . Distress Signals . | . . Times Spotted 30 | . 30 Peak Tracking Total 4 | . 4 Tactical Retreats . | . . Traps | -11 -10 ------- Run | Yrd Mat Traps Triggered 2 | . 2 Indirectly . | . . Trap Hack Attempts . | . . Triggered . | . . Disarmed . | . . Reprogrammed . | . . Reused . | . . Traps Extracted . | . . Installed . | . . Triggered . | . . Machines | -11 -10 ---------- Run | Yrd Mat Machines Disabled . | . . Max in Single Turn . | . . Machines Repaired . | . . Machines Dismantled . | . . Machines Sabotaged . | . . Overloaded Fab Kills . | . . Hacking | -11 -10 --------- Run | Yrd Mat Machines Accessed 5 | . 5 Terminals 5 | . 5 Fabricators . | . . Repair Stations . | . . Recycling Units . | . . Scanalyzers . | . . Garrison Access . | . . Total Hacks 18 | . 18 Successful 8 | . 8 Failed 10 | . 10 Catastrophic 3 | . 3 Database Lockouts . | . . Manual 18 | . 18 Terminals 18 | . 18 Fabricators . | . . Repair Stations . | . . Recycling Units . | . . Scanalyzers . | . . Garrison Access . | . . Terminal Hacks 5 | . 5 Robot Analysis 2 | . 2 Unreport Threat 1 | . 1 Locate Traps 2 | . 2 Fabricator Hacks . | . . Repair Station Hacks . | . . Recycling Unit Hacks . | . . Scanalyzer . | . . Garrison Access Hacks . | . . Unauthorized Hacks 3 | . 3 Terminals 3 | . 3 Botnet 3 | . 3 Fabricators . | . . Repair Stations . | . . Recycling Units . | . . Scanalyzers . | . . Garrison Access . | . . Data Cores Recovered 1 | . 1 Used 1 | . 1 Hacking Detections 5 | . 5 Full Trace Events 1 | . 1 Feedback Events . | . . Feedback Blocked . | . . Robot Schematics Acquired . | . . Robots Built . | . . Authchips . | . . Time . | . . Total Robot Build Rating . | . . Part Schematics Acquired . | . . Parts Built . | . . Authchips . | . . Time . | . . Total Part Build Rating . | . . Part Studies Acquired . | . . Parts Repaired . | . . Time . | . . Parts Recycled . | . . Recycled Matter . | . . Retrieved Matter . | . . Retrieved Components . | . . Parts Scanalyzed . | . . Part Schematics Acquired . | . . Parts Damaged . | . . Bothacking | -11 -10 ------------ Run | Yrd Mat Used RIF Installer . | . . Robots Hacked . | . . Non-combat . | . . Combat . | . . Robot Hacks Applied . | . . Relay Couplers Released . | . . Fabnet Peak Effective % . | . . Robots Rewired . | . . Allies Hacked . | . . Hacks Repelled . | . . Allies | -11 -10 -------- Run | Yrd Mat Total Allies . | . . Largest Group . | . . Highest-Rated Group . | . . Highest-Rated Ally . | . . Total Orders . | . . Ally Attacks . | . . Total Damage . | . . Kills . | . . Allies Corrupted . | . . Allies Melted . | . . Intel | -11 -10 ------- Run | Yrd Mat Active Infowar (turns) . | . . Robot Analysis Total 2 | . 2 Derelict Logs Recovered . | . . Drone Launches . | . . Drone Recoveries . | . . Exploration | -11 -10 ------------- Run | Yrd Mat Turns Passed 1012 | 43 969 Spaces Moved 593 | 34 559 Core 2 | 2 . Treads . | . . Legs 291 | . 291 Wheels 300 | 32 268 Hover . | . . Flight . | . . Fastest Speed 50 | 50 100 Average Speed 113 | 97 114 Slowest Speed 190 | 100 190 Overloaded Moves . | . . Propulsion Burnouts . | . . Robots Hopped . | . . Potential Cave-ins . | . . Cave-ins Triggered . | . . Exploration Rate (%) 31 | 4 59 Regions Visited 1 Branch Regions . Pre-discovered Areas . | . . Known Exits Taken . | . . Unknown Exits Taken 1 | 1 . Scrap Searched . | . . Spaces Dug . | . . Terrain Destroyed . | . . Melee . | . . Projectile . | . . AOE . | . . Terrain Rammed . | . . Walls Destroyed . | . . Machines Disabled . | . . Actions | -11 -10 --------- Run | Yrd Mat Total 755 | 41 714 Wait 45 | . 45 Move 592 | 33 559 Hop . | . . Pick Up 9 | 2 7 Fast Attach 8 | 6 2 Attach 3 | . 3 Detach . | . . Swap 6 | . 6 Drop 3 | . 3 Fire 89 | . 89 Melee . | . . Ram . | . . Kick . | . . Crush . | . . Escape Stasis . | . . Rewire . | . . Trap . | . . Miscellaneous . | . . Route ------- -11/Scrapyard -10/Materials (discovered 3 exits: [*Mat x2] / [*Min]) History --------- Turn | Location | Event 2 | -11/Scrapyard | Met Revision 17 26 | -11/Scrapyard | Discovered new exit (range 16) 44 | -11/Scrapyard | Entered Materials 270 | -10/Materials | Discovered new exit (range 11) 311 | -10/Materials | Build established: Mutant 712 | -10/Materials | Discovered new exit (range 12) 775 | -10/Materials | Build established: Scavenger-Mutant 852 | -10/Materials | Core integrity fell below 50% 879 | -10/Materials | Discovered new exit (range 16) 1002 | -10/Materials | Core integrity fell below 20% 1013 | -10/Materials | Destroyed by G-34 Mercenary with Small Laser Last Messages --------------- 00907_ An alarm sounds. 00907_ ALERT: Alarm triggered, dispatching investigation squad. 00911_ G-34 Mercenary destroyed. 00913_ U-05 Engineer lays Concrete. 00915_ R-06 Scavenger collects Hover Unit. 00915_ U-05 Engineer lays Concrete. 00918_ R-06 Scavenger collects Visual Processing Unit. 00924_ Connecting with Terminal... 00924_ ALERT: Suspicious activity at Terminal M003. Dispatching Investigation squad. 00935_ G-34 Mercenary destroyed. 00957_ Aluminum Leg destroyed. 00959_ Aluminum Leg melted. 00959_ G-34 Mercenary destroyed. 00966_ Acquired Aluminum Leg. 00968_ Acquired 10 matter. 00989_ Heat Sink destroyed. 00999_ Sml. Laser destroyed. 01001_ U-05 Engineer builds a Door. 01010_ G-47 Trooper destroyed. Map ----- +----------------------------------------------------+ | ?????????????????????????????????????? | | ?????????????????????????????????????? | | ?????????????????????????????????????? | | ?????????????????????????????????????? | | ?????????????????????????????????????? | | ?????????????????????????????????????? | | ?????????????????????????????????????? | | ?????????????????????????????????????? | | ??????????????? ???????????????????? | | ??????????????# #??????????????????? | | ??????????????+ +??????????????????? | | ??????????????# #??????????????????? | | ??????????????# #??????????????????? | | ??????????????# #??????????????????? | | ??????????????# #??????????????????? | | ??????????????# ###????????????????? | | ??????????????# # ?????????????????? | | ??????????????+ +??????????????????? | | ??????????????# #??????????????????? | | ??????????????# #????????????####### | | ??????????##### *############## # | | ??????????# = %[*%=! # | | ??????????# <[[ % == [% | | ??????????# %%!% [ % %%*%= | | ??????????####g######+########## = | | ???????????# @%* # ???????###!### | | ???????????# " # """ ######??#!#?# | | ???????????# T # "Y" # #??#!#?# | | ???????????# " # # #??#%#?# | | ???????????# # # #??# #?? | | ???????????# # # #??# #?? | | ???????????############### #??# #?# | | ??????????????# """T""" ## #??# #?# | | #########?????# ## #??# #?# | | # """ #?????#/ ## #??# #?# | | # "Y" ####### ## ????# #?# | | # # ###+########+####### #?? | | # """ # #?? | | # """ + #####%#?? | | # """ # #???# #?? | | # # """ ########+####?#%#?? | | # """ ## """ #?# #?# #?? | | # """ ## """ #?# #?#=#?? | | # """ ## % #?# #?# #?? | | # ## ! #?# """ """ ###/### | | ?######### ### #?# """ """ # | | ????????# ?# #?# """ """ # | | ???????# # #?# #""" | | ???????# # #?#? #""" | | ???????# < # #???#########""" | +----------------------------------------------------+ Best States ------------- Heat Dissipation 35 Energy Generation 10 Energy Capacity 250 Matter Stores 300 Matter Capacity 300 Sight Range 16 Terrain Scan Density 10 Evasion (%) 55 Item Schematics ----------------- None Robot Schematics ------------------ None Fabricated ------------ Nothing Repaired ---------- Nothing Studied --------- None Alien Tech Used ----------------- None Achievements -------------- None Challenges ------------ None Game ------ Seed ReactiveTimingTube Manual? 0 Play Time 00:06:59 Cumulative 248.5 hours Start 2026.07.07 @ 18:16:28 End 2026.07.07 @ 18:24:16 Sessions 1 Manual Loads 0 Difficulty Rogue Special Mode None Game No. 410 Rogue 247 Adventurer 15 Explorer 148 Win Type - Total 28 Types 27/0/0/1/0/0/0/0/0/0 Lore% 65 Gallery% 64 Achievement% 57 Wizard Run 0 Options --------- Layout 0 ASCII 0 Keyboard 1 Movement Numpad Keybinds 0 Fullscreen 2 Font 18/SmallcapsGlow Map View 76x50 Zoom Use 0% Tactical HUD 1 Map Filters NONE Filters NONE Steam 1 RUN: 45aa183f-4182-4f39-ad41-54510932eadf